bitfinex-derivatives/quotes_ETHF0:USTF0_20260115
["timestamp","ask_amount","ask_price","bid_price","bid_amount"]
[1768505967292,0.005,3295.0,3293.3,0.14196552]
[1768505967889,0.15179,3294.7,3293.3,0.14196552]
[1768505968098,0.005,3294.6,3293.3,0.14196552]
[1768505968502,0.005,3294.6,3293.2,0.005]
[1768505968503,0.15181,3294.4,3293.2,0.005]
[1768505969700,0.15182,3294.2,3293.2,0.005]
[1768505970597,0.15178,3294.9,3293.3,0.14196552]
[1768505970796,0.15179,3294.8,3293.3,0.14196552]
[1768505970999,0.15679,3294.7,3293.3,0.14196552]
[1768505971204,0.15679,3294.7,3293.2,0.005]
[1768505971807,1.01899615,3294.6,3293.2,0.005]
[1768505972002,0.1518,3294.6,3293.2,0.005]
[1768505972806,0.87281824,3294.5,3293.2,0.005]
[1768505973005,0.005,3294.5,3293.2,0.005]
[1768505973206,0.15182,3294.2,3293.2,0.005]
[1768505973408,0.15183,3294.0,3293.0,0.005]
[1768505973605,1.00322542,3293.9,3291.8,0.14196552]
[1768505973809,0.86806662,3293.8,3291.9,0.005]
[1768505974007,0.005,3293.7,3291.9,0.005]
[1768505974212,0.86806662,3293.6,3291.9,0.005]
[1768505974611,0.15185,3293.5,3291.9,0.005]
[1768505974813,0.15185,3293.5,3291.9,0.14696552]
[1768505975013,0.005,3293.4,3291.9,0.14696552]
[1768505977213,0.15685,3293.4,3291.9,0.14696552]
[1768505982923,0.15185,3293.4,3291.9,0.14696552]
[1768505983120,0.005,3293.3,3291.9,0.14696552]
[1768505983511,0.15185,3293.4,3291.9,0.14696552]
[1768505983723,0.005,3293.3,3291.9,0.14696552]
[1768505985521,0.15185,3293.4,3291.9,0.14696552]
[1768505985722,0.15685,3293.4,3291.9,0.14696552]
[1768505986222,0.15185,3293.4,3291.9,0.14696552]
[1768505987426,0.005,3293.8,3291.9,0.14696552]
[1768505987628,0.87123389,3293.7,3291.9,0.14696552]
[1768505987921,0.15184,3293.6,3291.9,0.14696552]
[1768505988225,0.005,3293.7,3291.9,0.14696552]
[1768505988226,0.15185,3293.5,3291.9,0.14696552]
[1768505989528,0.005,3293.4,3291.9,0.14696552]
[1768505990324,0.15187,3292.9,3291.7,0.00367566]
[1768505990530,0.15188,3292.8,3291.7,0.00367566]
[1768505991937,0.14524255,3292.9,3291.5,0.005]
[1768505992142,0.14524255,3292.9,3291.1,3.037]
[1768505992143,0.13724642,3292.6,3290.4,0.13417517]
[1768505992444,0.13724642,3292.4,3290.5,0.13917517]
[1768505992633,0.86684592,3292.3,3290.5,0.13917517]
[1768505992832,0.13724642,3292.4,3290.5,0.13917517]
[1768505993040,0.86662799,3292.3,3290.5,0.14162304]
[1768505993338,0.13724642,3292.4,3290.5,0.14162304]
[1768505993544,0.28915642,3292.2,3290.5,0.14162304]
[1768505993743,0.87135103,3292.1,3290.5,0.14162304]
[1768505993938,0.005,3292.1,3290.5,0.14162304]
[1768505994141,0.15194,3291.4,3289.5,0.13417517]
[1768505994343,0.005,3291.3,3289.6,0.13917517]
[1768505995242,0.14224642,3291.3,3289.6,0.14243756]
[1768505996241,40.8,3292.0,3289.6,0.14243756]
[1768505996242,41.08916642,3292.0,3289.6,0.29446756]
[1768505996445,0.87111969,3291.9,3289.7,0.13417517]
[1768505996646,0.86611969,3291.8,3289.7,0.13417517]
[1768505996835,0.005,3291.9,3289.7,0.13417517]
[1768505997436,0.28916642,3292.0,3289.7,0.13417517]
[1768505997633,0.005,3291.9,3289.7,0.13417517]
[1768505998046,0.28916642,3292.0,3289.7,0.13417517]
[1768505998241,0.14224642,3291.8,3289.7,0.13417517]
[1768505998443,0.15195,3291.4,3289.7,0.13417517]
[1768505998749,0.005,3291.3,3289.7,0.13417517]
[1768505999046,0.15195,3291.4,3289.7,0.13417517]
[1768505999246,0.005,3291.3,3289.7,0.13417517]
[1768506000646,0.15195,3291.4,3289.7,0.13417517]
[1768506000846,0.005,3291.3,3289.7,0.13417517]
[1768506001343,0.15195,3291.4,3289.7,0.13417517]
[1768506001543,0.005,3291.3,3289.7,0.13417517]
[1768506002451,0.005,3291.3,3289.6,0.00826239]
[1768506002848,0.005,3291.3,3289.6,0.14243756]
[1768506003050,0.15192,3291.9,3289.6,0.14243756]
[1768506003246,0.86592022,3291.8,3289.6,0.14243756]
[1768506003443,0.87092022,3291.7,3289.6,0.14243756]
[1768506003649,0.005,3291.7,3289.6,0.14243756]
[1768506005155,0.13724642,3291.6,3289.6,0.14243756]
[1768506005355,0.005,3291.5,3289.6,0.14243756]
[1768506005544,0.14224642,3291.5,3289.6,0.14243756]
[1768506007460,0.29418642,3291.5,3289.6,0.14243756]
[1768506008455,0.15195,3291.4,3289.6,0.14243756]
[1768506009247,0.005,3291.3,3289.6,0.14243756]
[1768506009558,0.15196,3291.1,3289.6,0.14243756]
[1768506009754,0.005,3291.0,3289.6,0.14243756]
[1768506011754,0.15196,3291.1,3289.6,0.14243756]
[1768506011950,0.005,3291.0,3289.6,0.14243756]
[1768506012353,0.13724642,3292.0,3289.6,0.14243756]
[1768506012554,0.15194,3291.6,3289.6,0.14243756]
[1768506012760,0.87079528,3291.5,3289.6,0.14243756]
[1768506012960,0.865812,3291.4,3289.6,0.14243756]
[1768506013164,0.005,3291.5,3289.6,0.14243756]
[1768506013364,0.86587243,3291.4,3289.6,0.14243756]
[1768506013561,0.14224642,3291.5,3289.6,0.14243756]
[1768506013761,0.15196,3291.1,3289.6,0.00826239]
[1768506013958,0.15196,3291.1,3289.6,0.14243756]
[1768506014156,0.005,3291.0,3289.6,0.14243756]
[1768506015256,0.005,3291.3,3289.6,0.14243756]
[1768506015453,0.15193,3291.7,3289.6,0.14243756]
[1768506015650,0.871746,3291.6,3289.6,0.14243756]
[1768506015855,0.866746,3291.5,3289.6,0.14243756]
[1768506016154,0.005,3291.4,3289.6,0.14243756]
[1768506018265,0.005,3291.3,3289.6,0.14243756]
[1768506019366,0.86971881,3291.2,3289.6,0.14243756]
[1768506019556,0.005,3291.3,3289.6,0.14243756]
[1768506019759,0.86972017,3291.2,3289.6,0.14243756]
[1768506020060,0.15194,3291.6,3289.9,0.13417517]
[1768506020256,0.87478155,3291.5,3290.1,0.13417517]
[1768506020456,0.86978155,3291.4,3290.1,0.13417517]
[1768506022566,0.87478155,3291.3,3290.1,0.13417517]
[1768506022765,0.86978155,3291.2,3290.1,0.13417517]
[1768506023664,0.86978155,3291.1,3290.1,0.13417517]
[1768506023858,0.15194,3291.6,3290.1,0.13417517]
[1768506024057,0.87686373,3291.5,3290.1,0.13417517]
[1768506024366,0.87186373,3291.4,3290.0,0.005]
[1768506024565,0.15195,3291.2,3290.0,0.005]
[1768506024764,0.87686373,3291.1,3290.0,0.005]
[1768506024969,0.87186373,3291.0,3290.0,0.005]
[1768506025160,0.87186373,3290.9,3290.0,0.005]
[1768506025361,0.87186373,3290.8,3290.0,0.005]
[1768506025558,0.87186373,3290.7,3290.0,0.005]
[1768506025761,0.005,3291.1,3290.0,0.005]
[1768506025960,0.8714927,3291.0,3290.0,0.005]
[1768506026160,0.8714927,3290.9,3290.0,0.005]
[1768506026458,0.8714927,3290.8,3290.0,0.005]
[1768506026770,0.005,3291.1,3290.0,0.005]
[1768506027065,0.87143955,3291.0,3290.0,0.005]
[1768506027265,0.87143955,3290.9,3290.0,0.14318283]
[1768506027462,0.005,3291.8,3290.1,0.13818283]
[1768506027856,2.32599462,3292.2,3290.3,0.15199]
[1768506028057,2.17408462,3292.5,3290.5,0.13818283]
[1768506028268,0.005,3292.4,3290.6,0.13818283]
[1768506028468,0.005,3292.3,3290.6,0.13818283]
[1768506028666,0.15189,3292.5,3290.6,0.29016283]
[1768506028872,0.005,3292.8,3291.0,0.13818283]
[1768506029063,0.005,3292.8,3291.2,0.13818283]
[1768506029466,0.00299613,3292.9,3291.2,0.13818283]
[1768506029667,0.00799613,3292.9,3291.2,0.13818283]
[1768506031168,0.00299613,3292.9,3291.2,0.13818283]
[1768506031476,0.005,3292.8,3291.2,0.13818283]
[1768506032673,0.00299613,3292.9,3291.2,0.13818283]
[1768506032877,0.005,3292.7,3291.2,0.13818283]
[1768506033672,0.29617674,3292.9,3291.2,0.13818283]
[1768506033975,0.005,3292.8,3291.2,0.13818283]
[1768506034271,0.15487613,3292.9,3291.2,0.13818283]
[1768506034473,0.005,3292.8,3291.2,0.13818283]
[1768506034876,0.15487613,3292.9,3291.2,0.13818283]
[1768506035476,0.005,3292.8,3291.2,0.13818283]
[1768506035671,0.00299613,3292.9,3291.2,0.13818283]
[1768506038075,0.14429674,3292.9,3291.1,0.005]
[1768506039075,0.15189,3292.6,3291.1,0.14318283]
[1768506039376,0.005,3292.5,3291.1,0.14318283]
[1768506040073,0.15189,3292.6,3291.1,0.14318283]
[1768506040273,0.005,3292.5,3291.1,0.14318283]
[1768506040577,0.15189,3292.6,3291.1,0.14318283]
[1768506040773,0.005,3292.5,3291.1,0.14318283]
[1768506041275,0.00299613,3292.9,3291.1,0.14318283]
[1768506041471,0.005,3292.8,3291.1,0.14318283]
[1768506041862,0.005,3292.7,3291.1,0.14318283]
[1768506042477,0.15189,3292.5,3291.1,0.14318283]
[1768506043777,0.15189,3292.5,3291.1,0.005]
[1768506045077,0.1519,3292.4,3291.1,0.005]
[1768506045281,0.005,3292.3,3291.1,0.005]
[1768506045473,0.005,3292.2,3291.1,0.005]
[1768506045873,0.1519,3292.4,3291.1,0.14318283]
[1768506046181,0.00299613,3292.9,3291.3,0.13818283]
[1768506046370,0.00799613,3292.9,3291.3,0.13818283]
[1768506046972,0.15987613,3292.9,3291.3,0.13818283]
[1768506047374,0.15188,3292.8,3291.3,0.13818283]
[1768506047873,0.00799613,3292.9,3291.3,0.13818283]
[1768506048075,0.1519,3292.4,3291.1,0.005]
[1768506048384,0.005,3292.3,3291.1,0.005]
[1768506053490,0.1519,3292.4,3291.1,0.14306729]
[1768506053689,0.1569,3292.4,3291.1,0.14306729]
[1768506054384,0.1519,3292.4,3291.1,0.14306729]
[1768506057293,0.86524608,3292.3,3291.1,0.14306729]
[1768506057595,0.005,3292.6,3291.1,0.14306729]
[1768506057892,0.86524488,3292.5,3291.1,0.14306729]
[1768506058095,0.86524488,3292.4,3291.1,0.14306729]
[1768506058294,0.86524488,3292.3,3291.1,0.14306729]
[1768506058486,0.005,3292.6,3291.1,0.14306729]
[1768506058686,0.86537027,3292.5,3291.1,0.14306729]
[1768506058889,0.86537027,3292.4,3291.1,0.14306729]
[1768506059199,0.86537027,3292.3,3291.1,0.14306729]
[1768506059493,0.005,3292.6,3291.1,0.14306729]
[1768506059698,0.28735568,3292.0,3290.0,0.13806729]
[1768506059887,0.87035687,3291.9,3290.0,0.13806729]
[1768506060084,0.86535687,3291.8,3290.0,0.13806729]
[1768506060289,0.15194,3291.6,3289.9,0.005]
[1768506060593,0.87035687,3291.5,3289.9,0.005]
[1768506060793,0.86535687,3291.4,3289.9,0.005]
[1768506060992,0.86535687,3291.3,3289.9,0.005]
[1768506061193,0.005,3291.5,3289.9,0.005]
[1768506061496,0.8646528,3291.4,3289.9,0.005]
[1768506061688,0.8646528,3291.3,3289.9,0.005]
[1768506061890,0.005,3291.5,3289.9,0.005]
[1768506062189,0.86467503,3291.4,3289.9,0.005]
[1768506062392,0.86467503,3291.3,3289.9,0.005]
[1768506062599,0.005,3291.5,3289.9,0.005]
[1768506062794,1.01602439,3291.4,3289.9,0.005]
[1768506063002,0.86408439,3291.3,3289.9,0.005]
[1768506063215,0.004,3291.2,3289.9,0.005]
[1768506065100,0.004,3291.2,3289.6,0.14132968]
[1768506065299,0.99764455,3291.1,3289.6,0.00326239]
[1768506065495,0.15198,3290.7,3289.7,0.005]
[1768506065696,0.15598,3290.7,3289.7,0.005]
[1768506066198,0.28741568,3290.6,3288.8,3.04]
[1768506066404,0.28741568,3290.6,3289.1,0.005]
[1768506067308,0.13543568,3291.1,3289.1,0.14527077]
[1768506067496,0.86072294,3291.0,3289.1,0.14527077]
[1768506067695,0.004,3290.9,3289.1,0.14527077]
[1768506068305,0.15196,3291.2,3289.1,0.14527077]
[1768506068600,0.86435973,3291.1,3289.1,0.14527077]
[1768506068806,0.28740568,3290.8,3289.2,0.005]
[1768506069005,0.004,3290.7,3289.2,0.005]
[1768506069905,0.15197,3290.8,3289.2,0.14306729]
[1768506071010,0.15197,3290.8,3289.2,0.14226729]
[1768506072108,0.15198,3290.6,3289.3,0.005]
[1768506073012,0.15598,3290.6,3289.3,0.005]
[1768506073210,0.13543568,3291.3,3289.3,0.14306729]
[1768506073415,0.15595,3291.2,3289.3,0.14306729]
[1768506073714,0.004,3291.1,3289.3,0.14306729]
[1768506074213,0.15195,3291.2,3289.3,0.14306729]
[1768506077712,0.004,3291.3,3289.3,0.14306729]
[1768506077916,0.13943568,3291.3,3289.5,0.13806729]
[1768506078609,0.15196,3291.0,3289.5,0.13806729]
[1768506079023,0.15596,3291.0,3289.5,0.13806729]
[1768506079315,0.15594,3291.5,3289.5,0.13806729]
[1768506079721,0.15194,3291.5,3289.7,0.13806729]
[1768506079901,0.15594,3291.5,3290.2,0.0045547]
[1768506080106,0.15594,3291.5,3290.3,0.005]
[1768506082615,0.15194,3291.5,3290.3,0.005]
[1768506083518,0.004,3291.7,3290.3,0.005]
[1768506084416,0.004,3291.9,3290.3,0.005]
[1768506084617,0.00299613,3292.9,3290.5,0.13937355]
[1768506084618,0.15189,3292.6,3290.5,0.13937355]
[1768506085729,0.15189,3292.6,3290.8,0.14145482]
[1768506085915,0.15189,3292.6,3290.9,0.005]
[1768506086421,0.15189,3292.6,3290.8,0.14145482]
[1768506086726,0.004,3292.5,3290.9,0.005]
[1768506087021,0.004,3292.5,3290.9,0.14645482]
[1768506087818,0.15191,3292.1,3290.4,0.14145482]
[1768506088022,0.86383533,3292.0,3290.5,0.004]
[1768506088321,0.86012368,3291.9,3290.5,0.004]
[1768506088532,0.004,3292.0,3290.5,0.004]
[1768506088728,0.86012025,3291.9,3290.5,0.004]
[1768506089026,0.15592,3292.0,3290.5,0.004]
[1768506089220,0.86012814,3291.9,3290.5,0.004]
[1768506089429,0.15592,3292.0,3290.5,0.004]
[1768506090024,0.86044112,3291.9,3290.5,0.004]
[1768506090226,0.15592,3292.0,3290.5,0.004]
[1768506090431,0.86044615,3291.9,3290.5,0.004]
[1768506090619,0.15592,3292.0,3290.5,0.004]
[1768506090919,0.86044511,3291.9,3290.5,0.004]
[1768506091120,0.86044511,3291.8,3290.5,0.004]
[1768506091316,0.15592,3292.0,3290.5,0.004]
[1768506091522,0.86029494,3291.9,3290.5,0.004]
[1768506091720,0.15592,3292.0,3290.5,0.004]
[1768506092021,0.8599583,3291.9,3290.5,0.004]
[1768506092224,0.15592,3292.0,3290.5,0.004]
[1768506092416,0.85976944,3291.9,3290.5,0.004]
[1768506092619,0.15592,3292.0,3290.5,0.004]
[1768506092918,0.85977878,3291.9,3290.5,0.004]
[1768506093122,0.15592,3292.0,3290.5,0.004]
[1768506093428,0.85970445,3291.9,3290.5,0.004]
[1768506093632,0.15592,3292.0,3290.5,0.004]
[1768506093927,0.15193,3291.7,3290.2,0.0045547]
[1768506094232,5.21208462,3292.7,3290.2,0.0045547]
[1768506094233,0.28250974,3291.5,3290.3,0.004]
[1768506094733,0.8595473,3291.4,3290.3,0.004]
[1768506094920,0.28250974,3291.5,3290.3,0.004]
[1768506095121,0.85959626,3291.4,3290.3,0.004]
[1768506095330,0.28250974,3291.5,3290.3,0.004]
[1768506095631,0.85960547,3291.4,3290.3,0.004]
[1768506095826,0.28250974,3291.5,3290.3,0.004]
[1768506096124,0.85960512,3291.4,3290.3,0.004]
[1768506096325,0.28250974,3291.5,3290.3,0.004]
[1768506096525,0.85976506,3291.4,3290.3,0.004]
[1768506096731,0.28250974,3291.5,3290.3,0.004]
[1768506096933,0.85976502,3291.4,3290.3,0.004]
[1768506097128,0.28250974,3291.5,3290.3,0.004]
[1768506097330,0.85998708,3291.4,3290.3,0.004]
[1768506097530,0.28250974,3291.5,3290.3,0.004]
[1768506097731,0.86399267,3291.4,3290.3,0.004]
[1768506098033,0.15594,3291.5,3290.3,0.004]
[1768506099835,0.15194,3291.5,3290.3,0.14545482]
[1768506103733,0.15195,3291.3,3290.2,0.0045547]
[1768506103936,0.15198,3290.7,3289.2,3.93634458]
[1768506104136,0.15198,3290.7,3289.3,0.004]
[1768506104729,0.152,3290.3,3288.8,0.14145482]
[1768506105031,0.15915586,3290.3,3289.1,0.00620348]
[1768506105834,0.1377256,3290.3,3289.1,0.00620348]
[1768506106034,0.15201,3290.1,3289.1,0.00620348]
[1768506106236,0.8631883,3290.0,3288.3,0.14145482]
[1768506106437,0.15202,3289.8,3287.8,3.18145482]
[1768506106636,0.15204,3289.4,3287.8,3.18145482]
[1768506106831,0.86308824,3289.3,3287.9,0.004]
[1768506107031,0.004,3289.3,3287.9,0.004]
[1768506107233,0.004,3289.3,3287.9,0.00654396]
[1768506107433,0.0045547,3288.9,3287.9,0.00654396]
[1768506110434,0.0045547,3288.9,3288.0,0.004]
[1768506112646,0.0045547,3288.9,3286.8,0.15215]
[1768506112647,0.15207,3288.7,3286.8,0.28760749]
[1768506112846,0.004,3288.6,3286.9,0.004]
[1768506113233,0.004,3288.6,3286.9,0.13945749]
[1768506113433,0.004,3288.6,3286.9,0.14236808]
[1768506114446,0.004,3288.5,3286.9,0.14236808]
[1768506114740,0.15207,3288.7,3286.9,0.14236808]
[1768506114741,0.004,3288.4,3286.9,0.14236808]
[1768506117045,0.0045547,3288.9,3286.9,0.14236808]
[1768506117349,0.004,3288.8,3286.9,0.14236808]
[1768506117550,0.14799082,3288.8,3286.9,0.14236808]
[1768506119547,0.004,3288.7,3286.9,0.14236808]
[1768506119753,0.004,3288.6,3286.9,0.14236808]
[1768506119948,0.1566147,3288.9,3286.9,0.14236808]
[1768506120251,0.004,3288.6,3286.9,0.14236808]
[1768506120447,0.1566147,3288.9,3286.9,0.14236808]
[1768506120654,0.0045547,3288.9,3287.3,0.28758749]
[1768506120958,0.0045547,3288.9,3287.4,0.13545749]
[1768506121144,0.0045547,3288.9,3287.5,0.004]
[1768506121547,0.004,3288.8,3287.5,0.004]
[1768506122450,0.004,3288.8,3286.9,0.00291059]
[1768506122451,0.15208,3288.5,3286.9,0.00291059]
[1768506122754,0.004,3288.4,3287.1,0.004]
[1768506123450,0.15608,3288.4,3287.1,0.004]
[1768506124243,0.004,3288.4,3286.9,0.00291059]
[1768506124451,0.85711712,3288.3,3286.9,0.00291059]
[1768506124652,0.14399082,3288.4,3286.9,0.00291059]
[1768506124959,0.004,3288.2,3286.9,0.00291059]
[1768506125259,0.15208,3288.5,3287.0,0.13945749]
[1768506125461,0.004,3288.4,3287.0,0.13945749]
[1768506125850,0.30060552,3288.9,3287.0,0.13945749]
[1768506126056,0.0045547,3288.9,3287.2,0.13545749]
[1768506128158,0.004,3288.8,3287.2,0.13545749]
[1768506128559,0.0045547,3288.9,3287.2,0.13545749]
[1768506128746,0.004,3288.7,3287.2,0.13545749]
[1768506129660,0.004,3288.7,3287.3,0.13545749]
[1768506129868,0.004,3288.7,3286.9,0.00291059]
[1768506129869,0.0045547,3288.9,3287.5,0.13545749]
[1768506134969,0.0045547,3288.9,3288.2,0.01048449]
[1768506135563,0.0045547,3288.9,3288.5,0.01705581]
[1768506136562,0.0045547,3288.9,3288.7,0.01705581]
[1768506136970,0.0045547,3288.9,3288.0,0.004]
[1768506137368,0.86121834,3288.8,3288.0,0.004]
[1768506137670,0.0045547,3288.9,3288.0,0.004]
[1768506137966,0.86127318,3288.8,3288.0,0.004]
[1768506138164,0.0045547,3288.9,3288.0,0.004]
[1768506138361,0.86130077,3288.8,3288.0,0.004]
[1768506138562,0.0045547,3288.9,3288.0,0.004]
[1768506138765,0.0045547,3288.9,3287.5,0.13545749]
[1768506138766,0.8613901,3288.8,3287.8,0.004]
[1768506138963,0.8613901,3288.7,3287.0,0.13545749]
[1768506139168,0.8653901,3288.6,3287.1,0.004]
[1768506139367,0.8613901,3288.5,3287.1,0.004]
[1768506139559,0.8613901,3288.4,3287.1,0.004]
[1768506139760,1.0134801,3288.3,3287.1,0.004]
[1768506139974,1.0134801,3288.2,3286.9,0.00291059]
[1768506140274,0.8653901,3288.1,3286.9,0.00291059]
[1768506140466,5.048,3287.9,3286.9,0.00291059]
[1768506140673,1.0135001,3287.8,3286.4,0.004]
[1768506140972,1.0135001,3287.8,3285.1,7.19834828]
[1768506140973,0.15213,3287.3,3285.8,0.004]
[1768506141160,0.8653901,3287.2,3285.7,0.004]
[1768506141473,0.8613901,3287.1,3285.7,0.004]
[1768506141661,0.004,3287.2,3285.7,0.00314799]
[1768506141662,0.8613901,3287.0,3285.7,0.00314799]
[1768506141971,0.15216,3286.7,3285.3,0.004]
[1768506142173,0.8653901,3286.6,3285.3,0.004]
[1768506142361,0.004,3286.6,3285.3,0.004]
[1768506142761,0.00456204,3286.8,3285.3,0.14284122]
[1768506142973,0.004,3286.7,3285.3,0.14651715]
[1768506143563,0.00456204,3286.8,3285.4,0.13884122]
[1768506143772,0.00456204,3286.8,3285.4,0.29106122]
[1768506143967,0.00456204,3286.8,3285.5,0.13884122]
[1768506146166,0.00456204,3286.8,3285.5,0.29106122]
[1768506146473,0.15612,3287.6,3285.7,0.14404683]
[1768506146676,0.15212,3287.6,3285.9,0.14404683]
[1768506148273,0.00227349,3287.9,3286.1,0.14404683]
[1768506148570,0.00227349,3287.9,3286.4,0.14404683]
[1768506150071,0.00227349,3287.9,3286.7,0.14404683]
[1768506150275,0.004,3288.8,3287.1,0.14404683]
[1768506150464,0.14474076,3289.6,3287.3,0.14404683]
[1768506150775,0.004,3289.2,3287.3,0.14404683]
[1768506150978,0.85809468,3289.1,3287.3,0.14404683]
[1768506151468,0.86195598,3289.1,3287.3,0.14404683]
[1768506151669,0.0038613,3289.1,3287.3,0.14404683]
[1768506152161,0.0038613,3289.1,3287.4,0.14404683]
[1768506156169,0.0038613,3289.1,3287.6,0.29616683]
[1768506156376,0.0038613,3289.1,3287.8,0.14404683]
[1768506156573,0.15201,3290.0,3287.8,0.14404683]
[1768506156574,0.15201,3290.0,3288.0,0.14404683]
[1768506156875,0.86484911,3289.9,3288.2,0.14404683]
[1768506157073,0.004,3289.9,3288.2,0.14404683]
[1768506157275,0.004,3289.9,3288.7,0.00456204]
[1768506157475,0.152,3290.3,3288.8,0.004]
[1768506157677,1.01683213,3290.2,3288.8,0.004]
[1768506157975,0.14474076,3289.9,3288.7,0.00456204]
[1768506158170,0.86083213,3289.8,3288.3,0.004]
[1768506158374,0.004,3289.7,3288.3,0.004]
[1768506159164,0.15602,3289.7,3288.3,0.004]
[1768506162484,0.15602,3289.7,3287.8,0.00241539]
[1768506162485,0.29679076,3289.1,3287.8,0.00241539]
[1768506162677,0.004,3289.0,3287.8,0.00241539]
[1768506162871,0.15606,3289.0,3287.8,0.00241539]
[1768506163470,0.14474076,3289.6,3287.8,0.00241539]
[1768506163674,1.01637863,3289.5,3287.8,0.14646222]
[1768506163871,0.86034863,3289.4,3287.8,0.14646222]
[1768506164077,0.15603,3289.5,3287.8,0.14646222]
[1768506165278,0.15203,3289.5,3287.8,0.14646222]
[1768506165481,0.004,3289.4,3287.8,0.14646222]
[1768506166384,0.004,3289.4,3288.0,0.14404683]
[1768506166980,0.15204,3289.3,3288.0,0.14404683]
[1768506167179,0.15204,3289.3,3287.9,0.004]
[1768506167881,0.15205,3289.2,3287.9,0.004]
[1768506168082,0.15206,3288.9,3287.9,0.004]
[1768506168378,0.15206,3288.9,3287.8,0.00641539]
[1768506168379,0.15207,3288.7,3287.8,0.00641539]
[1768506169584,0.15208,3288.4,3287.1,0.14404683]
[1768506169878,0.15208,3288.4,3287.3,0.004]
[1768506170481,0.00456204,3288.2,3287.3,0.00733486]
[1768506176488,0.00456204,3288.2,3287.3,0.14383714]
[1768506176689,2.17105566,3289.7,3287.4,0.13650228]
[1768506176896,0.86776197,3289.6,3287.4,0.13650228]
[1768506177194,0.15206,3289.0,3287.4,0.13650228]
[1768506177397,0.15606,3289.0,3287.4,0.13650228]
[1768506177791,0.15206,3289.0,3287.4,0.13650228]
[1768506179000,7.35857988,3289.8,3287.4,0.13650228]
[1768506179001,0.004,3289.3,3287.4,0.28863228]
[1768506179188,0.86496798,3289.2,3287.7,0.13650228]
[1768506179394,0.15203,3289.5,3287.9,0.13650228]
[1768506179702,0.86525613,3289.4,3287.9,0.13650228]
[1768506179890,0.86525613,3289.3,3287.9,0.13650228]
[1768506180091,0.86525613,3289.2,3287.9,0.13650228]
[1768506180397,0.15203,3289.5,3287.9,0.13650228]
[1768506180699,0.86544868,3289.4,3287.9,0.13650228]
[1768506180898,0.86544868,3289.3,3287.9,0.13650228]
[1768506181101,0.86544868,3289.2,3287.9,0.13650228]
[1768506181297,2.32305566,3290.1,3288.0,0.13650228]
[1768506181490,0.15201,3289.9,3288.0,0.13650228]
[1768506181693,1.02180816,3289.8,3288.0,0.13650228]
[1768506181999,0.86578816,3289.7,3288.0,0.13650228]
[1768506182192,0.86578816,3289.6,3288.0,0.13650228]
[1768506182392,0.86578816,3289.5,3288.0,0.13650228]
[1768506182593,0.15602,3289.8,3288.0,0.13650228]
[1768506182792,0.86565089,3289.7,3288.0,0.13650228]
[1768506182992,0.86565089,3289.6,3288.0,0.13650228]
[1768506183191,0.86565089,3289.5,3288.0,0.13650228]
[1768506183397,0.15602,3289.8,3288.0,0.13650228]
[1768506183594,0.00340935,3290.3,3288.5,0.13650228]
[1768506183803,0.86544642,3290.2,3288.7,0.13650228]
[1768506183991,0.00340935,3290.3,3288.7,0.28857228]
[1768506184192,0.00340935,3290.3,3288.8,0.13650228]
[1768506185799,0.00340935,3290.3,3289.0,0.28855228]
[1768506186002,0.15595,3291.2,3289.2,0.13650228]
[1768506186202,0.86428751,3291.1,3289.2,0.13650228]
[1768506186396,0.86428751,3291.0,3289.2,0.13650228]
[1768506186594,0.15595,3291.2,3289.2,0.13650228]
[1768506186803,0.86347218,3291.1,3289.2,0.13650228]
[1768506187101,0.86347218,3291.0,3289.2,0.13650228]
[1768506187304,0.004,3290.9,3289.2,0.13650228]
[1768506187607,0.004,3290.9,3289.3,0.13650228]
[1768506188304,0.00750347,3291.1,3289.3,0.13650228]
[1768506188497,0.00350347,3291.1,3289.3,0.13650228]
[1768506188699,0.00350347,3291.1,3289.2,0.15205]
[1768506188700,0.13952422,3291.0,3288.7,0.13650228]
[1768506188896,0.13952422,3291.0,3288.5,0.15208]
[1768506188897,1.00595472,3290.9,3288.8,0.14050228]
[1768506189095,0.8624305,3290.8,3288.8,0.14050228]
[1768506189314,0.15198,3290.7,3288.8,0.14050228]
[1768506189501,0.004,3290.6,3288.8,0.14050228]
[1768506191709,0.15598,3290.6,3288.8,0.14050228]
[1768506193410,0.004,3290.5,3288.8,0.14050228]
[1768506194511,0.15198,3290.6,3288.8,0.14050228]
[1768506194713,0.15599,3290.5,3288.8,0.14050228]
[1768506195010,0.004,3290.4,3288.8,0.14050228]
[1768506195201,0.15599,3290.4,3288.8,0.14050228]
[1768506196306,0.15201,3290.1,3288.8,0.004]
[1768506196508,0.15601,3290.0,3288.8,0.004]
[1768506200214,0.15201,3290.0,3288.8,0.004]
[1768506200413,0.004,3289.9,3288.8,0.004]
[1768506200708,0.004,3289.8,3288.8,0.004]
[1768506202908,0.004,3289.8,3287.8,0.13611288]
[1768506203114,0.86239144,3289.7,3287.9,0.004]
[1768506203417,0.14050379,3289.8,3287.9,0.004]
[1768506203617,0.86267044,3289.7,3287.9,0.004]
[1768506203916,0.15204,3289.3,3287.9,0.004]
[1768506204108,0.15604,3289.3,3287.9,0.004]
[1768506204308,0.15205,3289.1,3287.3,0.13944774]
[1768506204504,0.15206,3288.9,3287.4,0.14011288]
[1768506209614,0.004,3289.0,3287.4,0.14011288]
[1768506211213,0.14306434,3289.4,3287.4,0.14011288]
[1768506211508,0.8646077,3289.3,3287.4,0.14011288]
[1768506211721,0.8606077,3289.2,3287.4,0.14011288]
[1768506212024,0.004,3289.1,3287.4,0.14011288]
[1768506214414,0.14706434,3289.1,3287.4,0.004]
[1768506214616,0.15206,3288.8,3287.4,0.004]
[1768506214915,0.004,3288.7,3287.4,0.004]
[1768506215226,0.00667382,3288.7,3287.4,0.004]
[1768506216326,0.00267382,3288.7,3287.4,0.004]
[1768506216527,0.004,3288.6,3287.4,0.14273806]
[1768506216727,0.00267382,3288.7,3287.4,0.14273806]